[Event "Turkey IS Bank Super League 2017"]
[Site "Darica-Kocaeli"]
[Date "2017.08.03"]
[Round "8"]
[White "Yurtseven, Melih"]
[Black "Ozen, Deniz"]
[Result "1/2-1/2"]
[ECO "D02"]
[WhiteElo "2353"]
[BlackElo "2351"]
[Annotator "ChessBase"]
[PlyCount "113"]
[EventType "team-tourn"]
[EventCountry "TUR"]
[TimeControl "40/5400+30:1800+30"]

1. Nf3 {[%emt 0:00:30]} Nf6 {[%emt 0:01:00]} 2. g3 {[%emt 0:00:30]} d5 {[%emt 0:00:30]} 3. Bg2 {[%emt 0:00:30]} c6 {[%emt 0:00:30]} 4. O-O {[%emt 0:00:30]} Bg4 {[%emt 0:00:00]} 5. d4 {[%emt 0:00:00]} Nbd7 {[%emt 0:01:00]} 6. Nbd2 {[%emt 0:00:00]} e6 {[%emt 0:00:30]} 7. Re1 {[%emt 0:00:00]} Be7 {[%emt 0:00:00]} 8. e4 {[%emt 0:03:00]} O-O {[%emt 0:00:00]} 9. c3 {[%emt 0:00:30]} c5 {[%emt 0:10:30]} 10. h3 {[%emt 0:05:30]} Bh5 {[%emt 0:04:30]} 11. exd5 {[%emt 0:04:30]} exd5 {[%emt 0:00:30]} 12. dxc5 {[%emt 0:04:30]} Nxc5 {[%emt 0:02:30]} 13. Nb3 {[%emt 0:00:30]} Nce4 {[%emt 0:08:30]} 14. Nbd4 {[%emt 0:03:30]} Bd6 {[%emt 0:07:30]} 15. Nf5 {[%emt 0:11:30]} Qb6 {[%emt 0:11:30]} 16. Be3 {[%emt 0:08:30]} Qxb2 {[%emt 0:04:30]} 17. Nxd6 {[%emt 0:01:30]} Nxd6 {[%emt 0:01:30]} 18. Bd4 {[%emt 0:02:30]} Nde4 {[%emt 0:04:30]} 19. c4 {[%emt 0:04:30]} Qa3 {[%emt 0:05:30]} 20. g4 {[%emt 0:07:30]} Bg6 {[%emt 0:00:30]} 21. Ne5 {[%emt 0:02:30]} Rad8 {[%emt 0:11:30]} 22. Nxg6 {[%emt 0:04:30]} hxg6 {[%emt 0:00:30]} 23. cxd5 {[%emt 0:00:30]} Rfe8 {[%emt 0:00:30]} 24. Re3 {[%emt 0:04:30]} Qa5 {[%emt 0:03:30]} 25. Qe1 {[%emt 0:12:56]} Qa4 {[%emt 0:03:34]} 26. Bxa7 {[%emt 0:08:12]} Qxa7 {[%emt 0:04:21]} 27. Bxe4 {[%emt 0:00:16]} Re5 {[%emt 0:08:22]} 28. Bg2 {[%emt 0:01:43]} Rxe3 {[%emt 0:00:32]} 29. Qxe3 {[%emt 0:00:04]} Qa5 {[%emt 0:02:53]} 30. Qd4 {[%emt 0:02:05]} Qc7 {[%emt 0:00:29]} 31. Rb1 {[%emt 0:02:29]} Ne8 {[%emt 0:00:26]} 32. Qb6 {[%emt 0:04:50]} Qxb6 {[%emt 0:00:30]} 33. Rxb6 {[%emt 0:00:00]} Nd6 {[%emt 0:00:08]} 34. a4 {[%emt 0:00:03]} Kf8 {[%emt 0:00:00]} 35. a5 {[%emt 0:01:37]} Ke7 {[%emt 0:00:00]} 36. a6 {[%emt 0:00:46]} bxa6 {[%emt 0:00:18]} 37. Rxa6 {[%emt 0:00:30]} g5 {[%emt 0:00:00]} 38. Kh2 {[%emt 0:00:21]} Rb8 {[%emt 0:00:18]} 39. Ra3 {[%emt 0:00:07]} Rb2 {[%emt 0:00:50]} 40. Re3+ {[%emt 0:00:00]} Kd7 {[%emt 0:01:19]} 41. Kg3 {[%emt 0:20:04]} f5 {[%emt 0:02:30]} 42. Re5 {[%emt 0:01:34]} f4+ {[%emt 0:00:30]} 43. Kh2 {[%emt 0:00:29]} Nf7 {[%emt 0:03:30]} 44. Rf5 {[%emt 0:01:59]} Ke7 {[%emt 0:00:30]} 45. h4 {[%emt 0:04:54]} Rxf2 {[%emt 0:03:30]} 46. Kg1 {[%emt 0:00:48]} Rd2 {[%emt 0:00:30]} 47. hxg5 {[%emt 0:00:37]} g6 {[%emt 0:00:30]} 48. Rxf4 {[%emt 0:00:53]} Nxg5 {[%emt 0:00:00]} 49. Ra4 {[%emt 0:00:12]} Nf7 {[%emt 0:01:00]} 50. Ra7+ {[%emt 0:00:41]} Kf6 {[%emt 0:00:30]} 51. Ra6+ {[%emt 0:01:31]} Kg5 {[%emt 0:00:30]} 52. Re6 {[%emt 0:00:08]} Nh6 {[%emt 0:01:30]} 53. d6 {[%emt 0:03:56]} Nxg4 {[%emt 0:01:30]} 54. Bc6 {[%emt 0:00:27]} Nf6 {[%emt 0:01:30]} 55. d7 {[%emt 0:00:30]} Nxd7 {[%emt 0:00:30]} 56. Bxd7 {[%emt 0:00:30]} Rxd7 {[%emt 0:00:00]} 57. Kg2 {[%emt 0:00:00]} 1/2-1/2

[Event "Turkey IS Bank Super League 2017"]
[Site "Darica-Kocaeli"]
[Date "2017.08.03"]
[Round "8"]
[White "Unuk, Laura"]
[Black "Mammadova, Gulnar"]
[Result "0-1"]
[ECO "C06"]
[WhiteElo "2343"]
[BlackElo "2357"]
[Annotator "ChessBase"]
[PlyCount "180"]
[EventType "team-tourn"]
[EventCountry "TUR"]
[TimeControl "40/5400+30:1800+30"]

1. d4 {[%emt 0:00:30]} d5 {[%emt 0:01:00]} 2. e4 {[%emt 0:00:30]} e6 {[%emt 0:00:30]} 3. Nd2 {[%emt 0:00:30]} Nf6 {[%emt 0:00:00]} 4. e5 {[%emt 0:00:00]} Nfd7 {[%emt 0:01:00]} 5. Bd3 {[%emt 0:00:00]} c5 {[%emt 0:00:00]} 6. c3 {[%emt 0:00:30]} b6 {[%emt 0:00:00]} 7. Ne2 {[%emt 0:07:30]} Ba6 {[%emt 0:00:00]} 8. Bxa6 {[%emt 0:00:30]} Nxa6 {[%emt 0:00:00]} 9. O-O {[%emt 0:00:30]} Nc7 {[%emt 0:00:00]} 10. Nf3 {[%emt 0:20:30]} Be7 {[%emt 0:01:00]} 11. a4 {[%emt 0:00:30]} a6 {[%emt 0:06:30]} 12. Re1 {[%emt 0:02:30]} c4 {[%emt 0:03:30]} 13. Nf4 {[%emt 0:20:30]} g6 {[%emt 0:02:30]} 14. g3 {[%emt 0:01:30]} b5 {[%emt 0:04:30]} 15. h4 {[%emt 0:03:30]} a5 {[%emt 0:09:30]} 16. axb5 {[%emt 0:09:30]} Nb6 {[%emt 0:02:30]} 17. Ng5 {[%emt 0:00:30]} h6 {[%emt 0:09:30]} 18. Ngh3 {[%emt 0:11:24]} Nxb5 {[%emt 0:04:30]} 19. Qg4 {[%emt 0:06:44]} Kd7 {[%emt 0:04:30]} 20. h5 {[%emt 0:02:23]} g5 {[%emt 0:00:30]} 21. Ne2 {[%emt 0:01:37]} Qg8 {[%emt 0:04:30]} 22. Rf1 {[%emt 0:01:49]} Qh7 {[%emt 0:02:30]} 23. f4 {[%emt 0:00:21]} Qe4 {[%emt 0:06:30]} 24. Nf2 {[%emt 0:02:41]} Qf5 {[%emt 0:01:30]} 25. Qxf5 {[%emt 0:03:13]} exf5 {[%emt 0:00:30]} 26. g4 {[%emt 0:00:02]} gxf4 {[%emt 0:04:30]} 27. gxf5 {[%emt 0:00:30]} Rhg8+ {[%emt 0:00:30]} 28. Kh2 {[%emt 0:00:37]} f3 {[%emt 0:03:30]} 29. Nf4 {[%emt 0:03:02]} Bg5 {[%emt 0:06:30]} 30. N2h3 {[%emt 0:00:25]} Bxf4+ {[%emt 0:00:30]} 31. Nxf4 {[%emt 0:00:12]} Rg5 {[%emt 0:00:00]} 32. e6+ {[%emt 0:00:37]} Ke7 {[%emt 0:02:00]} 33. Ng6+ {[%emt 0:00:48]} fxg6 {[%emt 0:02:30]} 34. Bxg5+ {[%emt 0:00:30]} hxg5 {[%emt 0:00:00]} 35. hxg6 {[%emt 0:00:00]} Kf6 {[%emt 0:02:28]} 36. Rxf3 {[%emt 0:00:18]} Nd6 {[%emt 0:00:00]} 37. Kg2 {[%emt 0:00:00]} Nbc8 {[%emt 0:02:43]} 38. Rh1 {[%emt 0:01:22]} Ne7 {[%emt 0:00:35]} 39. g7 {[%emt 0:00:49]} Ndxf5 {[%emt 0:02:01]} 40. Rh8 {[%emt 0:00:00]} Rg8 {[%emt 0:08:43]} 41. Kh3 {[%emt 0:11:38]} g4+ {[%emt 0:03:30]} 42. Kxg4 {[%emt 0:01:36]} Rxg7+ {[%emt 0:00:30]} 43. Kh3 {[%emt 0:00:30]} Kxe6 {[%emt 0:00:30]} 44. Ra8 {[%emt 0:02:00]} Nc6 {[%emt 0:04:30]} 45. Ra6 {[%emt 0:03:24]} Rh7+ {[%emt 0:03:30]} 46. Kg4 {[%emt 0:05:54]} Nfe7 {[%emt 0:00:30]} 47. Kg3 {[%emt 0:02:11]} Rh8 {[%emt 0:02:30]} 48. Rb6 {[%emt 0:02:07]} Kd7 {[%emt 0:08:26]} 49. Rb7+ {[%emt 0:02:19]} Kc8 {[%emt 0:00:49]} 50. Rb5 {[%emt 0:00:04]} Kc7 {[%emt 0:00:48]} 51. Rf7 {[%emt 0:00:04]} Rd8 {[%emt 0:01:01]} 52. Kf3 {[%emt 0:01:30]} Rd7 {[%emt 0:04:38]} 53. Ke2 {[%emt 0:00:33]} Nd8 {[%emt 0:01:53]} 54. Rf6 {[%emt 0:03:36]} Nb7 {[%emt 0:01:25]} 55. Kd2 {[%emt 0:00:29]} Nc8 {[%emt 0:01:41]} 56. Kc2 {[%emt 0:00:36]} Na7 {[%emt 0:03:50]} 57. Rbb6 {[%emt 0:00:06]} Nd8 {[%emt 0:00:31]} 58. Ra6 {[%emt 0:00:56]} Ndc6 {[%emt 0:00:26]} 59. b3 {[%emt 0:00:31]} Kb7 {[%emt 0:01:48]} 60. Rxa7+ {[%emt 0:00:56]} Nxa7 {[%emt 0:00:30]} 61. bxc4 {[%emt 0:00:30]} dxc4 {[%emt 0:00:30]} 62. Rf5 {[%emt 0:00:00]} Kb6 {[%emt 0:00:00]} 63. Rf6+ {[%emt 0:00:00]} Nc6 {[%emt 0:00:00]} 64. Kb2 {[%emt 0:00:41]} Rd5 {[%emt 0:00:00]} 65. Ka3 {[%emt 0:00:24]} Rh5 {[%emt 0:01:27]} 66. Rg6 {[%emt 0:00:51]} Rb5 {[%emt 0:00:38]} 67. Ka4 {[%emt 0:00:28]} Rb1 {[%emt 0:00:27]} 68. Ka3 {[%emt 0:00:04]} Kc7 {[%emt 0:00:55]} 69. Rg7+ {[%emt 0:00:42]} Kd6 {[%emt 0:00:13]} 70. Rg6+ {[%emt 0:00:03]} Kd7 {[%emt 0:00:59]} 71. Ka4 {[%emt 0:00:56]} Ne7 {[%emt 0:03:02]} 72. Rg5 {[%emt 0:00:26]} Kd6 {[%emt 0:00:37]} 73. Kxa5 {[%emt 0:00:47]} Nd5 {[%emt 0:00:03]} 74. Rg6+ {[%emt 0:00:19]} Kd7 {[%emt 0:00:10]} 75. Rg7+ {[%emt 0:00:23]} Ke6 {[%emt 0:00:16]} 76. Rg6+ {[%emt 0:00:12]} Kf5 {[%emt 0:00:40]} 77. Rc6 {[%emt 0:00:35]} Ne3 {[%emt 0:00:10]} 78. d5 {[%emt 0:01:08]} Rd1 {[%emt 0:00:29]} 79. d6 {[%emt 0:00:28]} Ke5 {[%emt 0:00:31]} 80. Kb5 {[%emt 0:00:36]} Rd5+ {[%emt 0:00:42]} 81. Kb4 {[%emt 0:00:15]} Rxd6 {[%emt 0:00:02]} 82. Rc8 {[%emt 0:00:09]} Ke4 {[%emt 0:00:16]} 83. Kc5 {[%emt 0:00:48]} Rd5+ {[%emt 0:00:08]} 84. Kb4 {[%emt 0:00:03]} Kd3 {[%emt 0:00:03]} 85. Rh8 {[%emt 0:00:37]} Nc2+ {[%emt 0:00:29]} 86. Ka4 {[%emt 0:00:04]} Kxc3 {[%emt 0:00:38]} 87. Rh3+ {[%emt 0:00:50]} Rd3 {[%emt 0:00:05]} 88. Rh4 {[%emt 0:00:22]} Rd8 {[%emt 0:00:52]} 89. Kb5 {[%emt 0:01:04]} Ne3 {[%emt 0:00:13]} 90. Rh3 {[%emt 0:00:40]} Kd3 {[%emt 0:00:07]} 0-1

[Event "Turkey IS Bank Super League 2017"]
[Site "Darica-Kocaeli"]
[Date "2017.08.03"]
[Round "8"]
[White "Gokerkan, Cem Kaan"]
[Black "Nomin-Erdene, Davaademberel"]
[Result "0-1"]
[ECO "B11"]
[WhiteElo "2321"]
[BlackElo "2373"]
[Annotator "ChessBase"]
[PlyCount "136"]
[EventType "team-tourn"]
[EventCountry "TUR"]
[TimeControl "40/5400+30:1800+30"]

1. e4 {[%emt 0:01:30]} c6 {[%emt 0:01:00]} 2. Nc3 {[%emt 0:01:30]} d5 {[%emt 0:00:30]} 3. Nf3 {[%emt 0:00:00]} dxe4 {[%emt 0:00:30]} 4. Nxe4 {[%emt 0:00:00]} Nf6 {[%emt 0:00:00]} 5. Nxf6+ {[%emt 0:00:30]} exf6 {[%emt 0:00:00]} 6. Bc4 {[%emt 0:02:30]} Bd6 {[%emt 0:00:00]} 7. Qe2+ {[%emt 0:00:00]} Be7 {[%emt 0:00:00]} 8. h3 {[%emt 0:09:00]} O-O {[%emt 0:00:30]} 9. d4 {[%emt 0:00:30]} Re8 {[%emt 0:07:30]} 10. O-O {[%emt 0:08:30]} Bd6 {[%emt 0:07:30]} 11. Be3 {[%emt 0:01:30]} Nd7 {[%emt 0:00:30]} 12. Rfe1 {[%emt 0:13:30]} Nb6 {[%emt 0:09:30]} 13. Bb3 {[%emt 0:00:30]} Nd5 {[%emt 0:00:30]} 14. Qd3 {[%emt 0:01:30]} Nxe3 {[%emt 0:07:30]} 15. Rxe3 {[%emt 0:00:30]} Rxe3 {[%emt 0:03:30]} 16. Qxe3 {[%emt 0:00:30]} Bd7 {[%emt 0:00:30]} 17. Re1 {[%emt 0:03:30]} Qa5 {[%emt 0:03:30]} 18. c3 {[%emt 0:06:30]} Re8 {[%emt 0:07:30]} 19. Qd2 {[%emt 0:07:30]} Rxe1+ {[%emt 0:02:30]} 20. Nxe1 {[%emt 0:02:30]} Bb8 {[%emt 0:00:30]} 21. Qe3 {[%emt 0:02:30]} Kf8 {[%emt 0:01:30]} 22. Bc4 {[%emt 0:11:30]} b5 {[%emt 0:16:30]} 23. Bb3 {[%emt 0:00:30]} Qc7 {[%emt 0:00:00]} 24. Nf3 {[%emt 0:01:30]} Bf5 {[%emt 0:00:00]} 25. a3 {[%emt 0:12:28]} g5 {[%emt 0:04:30]} 26. Bd1 {[%emt 0:03:48]} h5 {[%emt 0:01:30]} 27. Kf1 {[%emt 0:00:01]} Bg6 {[%emt 0:08:27]} 28. Be2 {[%emt 0:00:30]} Qd6 {[%emt 0:02:25]} 29. Bd3 {[%emt 0:01:14]} Qd5 {[%emt 0:01:59]} 30. Bxg6 {[%emt 0:03:09]} fxg6 {[%emt 0:00:05]} 31. Qd3 {[%emt 0:00:07]} Kf7 {[%emt 0:01:08]} 32. Nd2 {[%emt 0:00:08]} Bf4 {[%emt 0:04:05]} 33. Ne4 {[%emt 0:02:23]} f5 {[%emt 0:04:10]} 34. Nc5 {[%emt 0:00:02]} Bd6 {[%emt 0:00:53]} 35. Nb7 {[%emt 0:01:56]} Be7 {[%emt 0:00:17]} 36. Na5 {[%emt 0:01:30]} Bd8 {[%emt 0:05:13]} 37. c4 {[%emt 0:01:18]} bxc4 {[%emt 0:00:43]} 38. Nxc4 {[%emt 0:00:30]} Bf6 {[%emt 0:00:00]} 39. Ne3 {[%emt 0:01:11]} Qxd4 {[%emt 0:00:15]} 40. Qb3+ {[%emt 0:00:00]} Ke7 {[%emt 0:03:20]} 41. Nc4 {[%emt 0:07:15]} Qd5 {[%emt 0:04:30]} 42. Kg1 {[%emt 0:03:30]} Bd4 {[%emt 0:06:30]} 43. Qb7+ {[%emt 0:03:36]} Kf6 {[%emt 0:00:30]} 44. Ne3 {[%emt 0:06:48]} Qc5 {[%emt 0:04:33]} 45. Qh7 {[%emt 0:01:46]} f4 {[%emt 0:01:17]} 46. Nd1 {[%emt 0:02:18]} g4 {[%emt 0:02:16]} 47. hxg4 {[%emt 0:00:46]} hxg4 {[%emt 0:00:04]} 48. Qh8+ {[%emt 0:08:12]} Kf7 {[%emt 0:01:51]} 49. Qh7+ {[%emt 0:00:34]} Bg7 {[%emt 0:01:38]} 50. Qh4 {[%emt 0:00:01]} Qh5 {[%emt 0:00:20]} 51. Qd8 {[%emt 0:00:27]} g3 {[%emt 0:00:17]} 52. fxg3 {[%emt 0:00:25]} fxg3 {[%emt 0:00:39]} 53. Qd7+ {[%emt 0:01:25]} Kg8 {[%emt 0:00:34]} 54. Qe6+ {[%emt 0:00:20]} Kh7 {[%emt 0:01:09]} 55. Ne3 {[%emt 0:00:46]} Bxb2 {[%emt 0:03:36]} 56. Qxc6 {[%emt 0:00:27]} Bg7 {[%emt 0:04:15]} 57. Qd7 {[%emt 0:00:14]} Qe5 {[%emt 0:00:51]} 58. Qh3+ {[%emt 0:00:42]} Kg8 {[%emt 0:00:30]} 59. Qc8+ {[%emt 0:00:30]} Bf8 {[%emt 0:00:00]} 60. Qc4+ {[%emt 0:01:30]} Kg7 {[%emt 0:00:00]} 61. Qd3 {[%emt 0:00:10]} Bc5 {[%emt 0:01:17]} 62. Qd7+ {[%emt 0:00:06]} Kh6 {[%emt 0:00:00]} 63. Qh3+ {[%emt 0:00:44]} Kg5 {[%emt 0:00:22]} 64. Qg4+ {[%emt 0:00:30]} Kf6 {[%emt 0:00:00]} 65. Qh4+ {[%emt 0:00:00]} Ke6 {[%emt 0:00:27]} 66. Qg4+ {[%emt 0:00:22]} Ke7 {[%emt 0:00:30]} 67. Qh4+ {[%emt 0:00:00]} Ke8 {[%emt 0:00:00]} 68. Kh1 {[%emt 0:00:41]} Qa1+ {[%emt 0:00:02]} 0-1

[Event "Turkey IS Bank Super League 2017"]
[Site "Darica-Kocaeli"]
[Date "2017.08.03"]
[Round "8"]
[White "Samani, Yamac"]
[Black "Soysal, Serkan"]
[Result "0-1"]
[ECO "C84"]
[WhiteElo "2263"]
[BlackElo "2367"]
[Annotator "RC"]
[PlyCount "106"]
[EventType "team-tourn"]
[EventCountry "TUR"]
[TimeControl "40/5400+30:1800+30"]

1. e4 {[%emt 0:00:30]} e5 {[%emt 0:01:00]} 2. Nf3 {[%emt 0:00:30]} Nc6 {[%emt 0:00:30]} 3. Bb5 {[%emt 0:01:30]} a6 {[%emt 0:00:00]} 4. Ba4 {[%emt 0:00:30]} Nf6 {[%emt 0:00:00]} 5. O-O {[%emt 0:00:30]} b5 {[%emt 0:00:30]} 6. Bb3 {[%emt 0:00:30]} Bb7 {[%emt 0:00:00]} 7. Re1 {[%emt 0:00:30]} Be7 {[%emt 0:00:00]} 8. Nc3 {[%emt 0:02:30]} O-O {[%emt 0:01:30]} 9. d3 {[%emt 0:05:30]} d6 {[%emt 0:05:30]} 10. a3 {[%emt 0:01:30]} Qd7 {[%emt 0:19:30]} 11. Bg5 {[%emt 0:15:30]} Rfe8 {[%emt 0:32:30]} 12. Nd5 {[%emt 0:25:30]} Nxd5 {[%emt 0:01:30]} 13. Bxd5 {[%emt 0:01:30]} Nd8 {[%emt 0:02:30]} 14. Bxb7 {[%emt 0:03:30]} Nxb7 {[%emt 0:00:00]} 15. Bxe7 {[%emt 0:05:30]} Rxe7 {[%emt 0:00:00]} 16. Qd2 {[%emt 0:11:30]} Nc5 {[%emt 0:01:30]} 17. Rad1 {[%emt 0:01:30]} Rae8 {[%emt 0:01:30]} 18. Re3 {[%emt 0:03:15]} g6 {[%emt 0:04:30]} 19. Rde1 {[%emt 0:02:43]} Ne6 {[%emt 0:02:30]} 20. d4 {[%emt 0:01:12]} f6 {[%emt 0:08:01]} 21. d5 {[%emt 0:03:17]} Nc5 {[%emt 0:01:53]} 22. Qe2 {[%emt 0:03:59]} f5 {[%emt 0:02:51]} 23. exf5 {[%emt 0:01:14]} gxf5 {[%emt 0:01:23]} 24. Nd2 {[%emt 0:03:34]} Rg7 {[%emt 0:03:44]} 25. Kh1 {[%emt 0:01:17]} Qf7 {[%emt 0:01:06]} 26. c4 {[%emt 0:02:20]} bxc4 {[%emt 0:02:44]} 27. Qxc4 {[%emt 0:00:07]} Nd7 {[%emt 0:01:46]} 28. Rg3 {[%emt 0:01:45]} Rxg3 {[%emt 0:00:42]} 29. hxg3 {[%emt 0:00:30]} Nb6 {[%emt 0:00:00]} 30. Qxa6 {[%emt 0:00:00]} Qxd5 {[%emt 0:00:05]} 31. Nf3 {[%emt 0:00:02]} Rf8 {[%emt 0:04:38]} 32. Qe2 {[%emt 0:00:17]} f4 {[%emt 0:01:18]} 33. Qe4 {[%emt 0:01:41]} Qxe4 {[%emt 0:00:33]} 34. Rxe4 {[%emt 0:00:04]} fxg3 {[%emt 0:00:00]} 35. fxg3 {[%emt 0:00:59]} h6 {[%emt 0:01:14]} 36. Kg1 {[%emt 0:01:06]} Rb8 {[%emt 0:00:05]} 37. Nh4 {[%emt 0:00:00]} Nd5 {[%emt 0:00:18]} 38. b4 {[%emt 0:00:28]} Ra8 {[%emt 0:00:41]} 39. Nf5 {[%emt 0:00:00]} Rxa3 {[%emt 0:00:00]} 40. Rg4+ {[%emt 0:00:00]} Kf8 {[%emt 0:09:28]} 41. Nxh6 {[%emt 0:06:10]} Rb3 {[%emt 0:01:30]} 42. Rg8+ {[%emt 0:00:30]} Ke7 {[%emt 0:00:30]} 43. g4 {[%emt 0:00:30]} Rb1+ {[%emt 0:01:30]} 44. Kf2 {[%emt 0:05:30]} Rxb4 {[%emt 0:07:08]} 45. g5 {[%emt 0:00:30]} e4 {[%emt 0:04:41]} 46. g6 {[%emt 0:05:45]} e3+ {[%emt 0:00:59]} 47. Ke1 {[%emt 0:05:05]} Rb1+ {[%emt 0:01:12]} 48. Ke2 {[%emt 0:00:30]} Rb2+ {[%emt 0:00:00]} 49. Ke1 {[%emt 0:04:58]} Nc3 {[%emt 0:02:33]} 50. Nf5+ {[%emt 0:01:18]} Kf6 {[%emt 0:00:34]} 51. Nxe3 {[%emt 0:00:47]} Re2+ {[%emt 0:00:35]} 52. Kf1 {[%emt 0:00:30]} Rxe3 {[%emt 0:00:00]} 53. g7 {[%emt 0:00:00]} Nd5 {[%emt 0:00:20]} 0-1

[Event "Turkey IS Bank Super League 2017"]
[Site "Darica-Kocaeli"]
[Date "2017.08.03"]
[Round "8"]
[White "Avramidou, Anastasia"]
[Black "Arda, Cagil Irmak"]
[Result "1-0"]
[ECO "E61"]
[WhiteElo "2247"]
[BlackElo "2080"]
[Annotator "ChessBase"]
[PlyCount "75"]
[EventType "team-tourn"]
[EventCountry "TUR"]
[TimeControl "40/5400+30:1800+30"]

1. d4 {[%emt 0:00:30]} Nf6 {[%emt 0:02:00]} 2. c4 {[%emt 0:00:30]} g6 {[%emt 0:00:00]} 3. Nc3 {[%emt 0:00:30]} Bg7 {[%emt 0:00:00]} 4. Nf3 {[%emt 0:00:00]} d6 {[%emt 0:00:30]} 5. Bf4 {[%emt 0:00:00]} O-O {[%emt 0:00:30]} 6. h3 {[%emt 0:00:30]} Nbd7 {[%emt 0:01:30]} 7. e3 {[%emt 0:00:00]} Re8 {[%emt 0:02:30]} 8. Be2 {[%emt 0:00:00]} b6 {[%emt 0:04:30]} 9. O-O {[%emt 0:00:30]} Bb7 {[%emt 0:00:00]} 10. Qc2 {[%emt 0:03:30]} c5 {[%emt 0:03:00]} 11. d5 {[%emt 0:04:30]} Rf8 {[%emt 0:02:30]} 12. Bh2 {[%emt 0:03:30]} a6 {[%emt 0:00:30]} 13. a4 {[%emt 0:01:30]} Ne8 {[%emt 0:01:30]} 14. e4 {[%emt 0:07:30]} e5 {[%emt 0:07:30]} 15. Ne1 {[%emt 0:27:30]} Bc8 {[%emt 0:08:30]} 16. Nd3 {[%emt 0:01:30]} a5 {[%emt 0:03:30]} 17. f4 {[%emt 0:02:30]} exf4 {[%emt 0:01:30]} 18. Bxf4 {[%emt 0:00:30]} Qe7 {[%emt 0:00:30]} 19. Qb3 {[%emt 0:11:30]} Rb8 {[%emt 0:00:30]} 20. Bg4 {[%emt 0:00:30]} Nef6 {[%emt 0:06:30]} 21. Bf3 {[%emt 0:00:30]} Ne8 {[%emt 0:00:30]} 22. Nb5 {[%emt 0:03:30]} Ne5 {[%emt 0:00:30]} 23. Bxe5 {[%emt 0:04:30]} Bxe5 {[%emt 0:00:30]} 24. Nxe5 {[%emt 0:00:30]} Qxe5 {[%emt 0:00:30]} 25. Na7 {[%emt 0:03:30]} Qg3 {[%emt 0:14:30]} 26. Nc6 {[%emt 0:03:30]} Bxh3 {[%emt 0:03:30]} 27. Rf2 {[%emt 0:00:30]} Rb7 {[%emt 0:09:30]} 28. Nxa5 {[%emt 0:00:37]} Rb8 {[%emt 0:00:30]} 29. Nc6 {[%emt 0:00:43]} Rb7 {[%emt 0:00:00]} 30. a5 {[%emt 0:00:52]} Nf6 {[%emt 0:04:00]} 31. Qc3 {[%emt 0:05:00]} Qg5 {[%emt 0:03:30]} 32. a6 {[%emt 0:00:30]} Rc7 {[%emt 0:00:00]} 33. e5 {[%emt 0:02:55]} dxe5 {[%emt 0:02:00]} 34. Qxe5 {[%emt 0:00:05]} Qxe5 {[%emt 0:00:30]} 35. Nxe5 {[%emt 0:00:05]} Bf5 {[%emt 0:00:30]} 36. d6 {[%emt 0:00:54]} Rcc8 {[%emt 0:00:30]} 37. Nc6 {[%emt 0:03:15]} Kg7 {[%emt 0:01:41]} 38. Ne7 {[%emt 0:00:07]} 1-0

[Event "Turkey IS Bank Super League 2017"]
[Site "Darica-Kocaeli"]
[Date "2017.08.03"]
[Round "8"]
[White "Kesgin, Halit Kaan"]
[Black "Tasdogen, Dincer"]
[Result "1-0"]
[ECO "B30"]
[WhiteElo "2207"]
[BlackElo "2215"]
[Annotator "ChessBase"]
[PlyCount "127"]
[EventType "team-tourn"]
[EventCountry "TUR"]
[TimeControl "40/5400+30:1800+30"]

1. e4 {[%emt 0:00:30]} c5 {[%emt 0:01:00]} 2. Nf3 {[%emt 0:00:30]} Nc6 {[%emt 0:00:30]} 3. Bb5 {[%emt 0:00:30]} e6 {[%emt 0:00:00]} 4. Bxc6 {[%emt 0:00:30]} bxc6 {[%emt 0:00:00]} 5. b3 {[%emt 0:00:00]} d6 {[%emt 0:03:30]} 6. O-O {[%emt 0:02:00]} e5 {[%emt 0:02:30]} 7. Bb2 {[%emt 0:01:30]} Nf6 {[%emt 0:15:30]} 8. Re1 {[%emt 0:00:30]} Bg4 {[%emt 0:11:30]} 9. h3 {[%emt 0:06:30]} Bxf3 {[%emt 0:07:30]} 10. Qxf3 {[%emt 0:00:30]} g6 {[%emt 0:02:30]} 11. c3 {[%emt 0:08:30]} Bg7 {[%emt 0:04:30]} 12. d4 {[%emt 0:00:30]} cxd4 {[%emt 0:09:30]} 13. cxd4 {[%emt 0:00:30]} O-O {[%emt 0:04:30]} 14. Nd2 {[%emt 0:21:30]} Nd7 {[%emt 0:06:30]} 15. dxe5 {[%emt 0:00:30]} Nxe5 {[%emt 0:03:30]} 16. Qe2 {[%emt 0:04:30]} Re8 {[%emt 0:04:30]} 17. Rac1 {[%emt 0:10:30]} Rc8 {[%emt 0:06:01]} 18. f4 {[%emt 0:02:30]} Nd3 {[%emt 0:08:15]} 19. Qxd3 {[%emt 0:00:30]} Bxb2 {[%emt 0:00:27]} 20. Rc2 {[%emt 0:00:00]} Bg7 {[%emt 0:03:06]} 21. Rec1 {[%emt 0:03:00]} Qd7 {[%emt 0:04:09]} 22. Kh2 {[%emt 0:03:30]} Rc7 {[%emt 0:01:28]} 23. Nf3 {[%emt 0:02:30]} Rec8 {[%emt 0:00:19]} 24. Rd1 {[%emt 0:04:30]} d5 {[%emt 0:00:29]} 25. f5 {[%emt 0:10:13]} Qd6+ {[%emt 0:00:41]} 26. Kh1 {[%emt 0:00:07]} Rd8 {[%emt 0:00:26]} 27. exd5 {[%emt 0:00:37]} cxd5 {[%emt 0:00:24]} 28. Qxd5 {[%emt 0:10:06]} Rxc2 {[%emt 0:00:40]} 29. Qxd6 {[%emt 0:00:30]} Rxd6 {[%emt 0:00:30]} 30. Rxd6 {[%emt 0:00:00]} Bh6 {[%emt 0:00:28]} 31. g4 {[%emt 0:00:43]} Bf4 {[%emt 0:00:33]} 32. Rd4 {[%emt 0:00:49]} Be3 {[%emt 0:00:30]} 33. Re4 {[%emt 0:00:46]} Bb6 {[%emt 0:00:30]} 34. f6 {[%emt 0:01:53]} h6 {[%emt 0:00:23]} 35. g5 {[%emt 0:01:37]} Rf2 {[%emt 0:00:52]} 36. Re8+ {[%emt 0:00:04]} Kh7 {[%emt 0:00:00]} 37. Ne5 {[%emt 0:00:06]} hxg5 {[%emt 0:00:42]} 38. Nxf7 {[%emt 0:00:35]} Rxf6 {[%emt 0:00:42]} 39. Nxg5+ {[%emt 0:00:03]} Kg7 {[%emt 0:00:22]} 40. Re2 {[%emt 0:00:00]} Rf1+ {[%emt 0:01:03]} 41. Kh2 {[%emt 0:04:21]} Rf5 {[%emt 0:05:30]} 42. h4 {[%emt 0:03:30]} Bf2 {[%emt 0:14:06]} 43. Kh3 {[%emt 0:01:30]} Kh6 {[%emt 0:01:42]} 44. Re7 {[%emt 0:00:30]} Bxh4 {[%emt 0:00:13]} 45. Kxh4 {[%emt 0:00:00]} Rxg5 {[%emt 0:03:23]} 46. Rxa7 {[%emt 0:00:00]} Rg1 {[%emt 0:01:12]} 47. Ra6 {[%emt 0:03:30]} Rd1 {[%emt 0:02:18]} 48. Rb6 {[%emt 0:00:30]} Rd4+ {[%emt 0:01:31]} 49. Kg3 {[%emt 0:00:30]} Kh5 {[%emt 0:00:33]} 50. a4 {[%emt 0:00:30]} g5 {[%emt 0:00:26]} 51. a5 {[%emt 0:04:30]} Rd3+ {[%emt 0:00:41]} 52. Kf2 {[%emt 0:00:30]} Rd2+ {[%emt 0:01:35]} 53. Ke3 {[%emt 0:09:22]} Ra2 {[%emt 0:00:16]} 54. b4 {[%emt 0:00:37]} Ra3+ {[%emt 0:01:17]} 55. Kd4 {[%emt 0:00:40]} g4 {[%emt 0:00:48]} 56. Rb8 {[%emt 0:00:14]} g3 {[%emt 0:00:52]} 57. Kc5 {[%emt 0:00:36]} Rf3 {[%emt 0:01:22]} 58. Rh8+ {[%emt 0:00:34]} Kg4 {[%emt 0:00:40]} 59. Rg8+ {[%emt 0:00:22]} Kh4 {[%emt 0:00:26]} 60. a6 {[%emt 0:02:25]} Rf5+ {[%emt 0:00:05]} 61. Kc6 {[%emt 0:00:06]} Rf6+ {[%emt 0:01:01]} 62. Kb7 {[%emt 0:00:23]} Rf4 {[%emt 0:00:15]} 63. b5 {[%emt 0:00:41]} Rg4 {[%emt 0:00:14]} 64. Rxg4+ {[%emt 0:00:00]} 1-0